[Event "*** Qualifier 1: Titled Tuesday 3|2 Blitz"]
[Site "Chess.com"]
[Date "2017.04.04"]
[Round "6"]
[White "peteseeger"]
[Black "FearNoEvil12"]
[Result "0-1"]
[WhiteElo "2106"]
[BlackElo "2101"]
[TimeControl "180+2"]
[EndTime "14:20:25 PDT"]
[Termination "FearNoEvil12 won by resignation"]

1. e4 {[%clk 0:03:02]} 1... Nf6 {[%clk 0:03:00.7]} 2. Nc3 {[%clk 0:03:01]} 2...
d5 {[%clk 0:02:59.9]} 3. e5 {[%clk 0:03:00.6]} 3... d4 {[%clk 0:03:00.7]} 4.
exf6 {[%clk 0:03:00.1]} 4... dxc3 {[%clk 0:03:02.2]} 5. fxg7 {[%clk 0:02:59.7]}
5... cxd2+ {[%clk 0:03:02.4]} 6. Bxd2 {[%clk 0:02:53.7]} 6... Bxg7 {[%clk
0:03:02.6]} 7. Qf3 {[%clk 0:02:49.3]} 7... Qd6 {[%clk 0:03:03.7]} 8. O-O-O
{[%clk 0:02:48]} 8... Qb6 {[%clk 0:03:05.1]} 9. c3 {[%clk 0:02:46.2]} 9... Be6
{[%clk 0:03:03.8]} 10. Qg3 {[%clk 0:02:21.1]} 10... Bf6 {[%clk 0:02:58.1]} 11.
Bf4 {[%clk 0:02:13.5]} 11... Nd7 {[%clk 0:02:16.6]} 12. Bxc7 {[%clk 0:02:03.7]}
12... Qc6 {[%clk 0:02:16.9]} 13. Nf3 {[%clk 0:01:58]} 13... Rc8 {[%clk 0:02:16]}
14. Ba5 {[%clk 0:01:33.4]} 14... Qa4 {[%clk 0:02:10.8]} 15. Bb4 {[%clk
0:01:02.9]} 15... Qxb4 {[%clk 0:02:06.6]} 0-1

[Event "*** Qualifier 1: Titled Tuesday 3|2 Blitz"]
[Site "Chess.com"]
[Date "2017.04.04"]
[Round "6"]
[White "severomorskij"]
[Black "AkshatChandra"]
[Result "1-0"]
[WhiteElo "2659"]
[BlackElo "2633"]
[TimeControl "180+2"]
[EndTime "14:20:33 PDT"]
[Termination "severomorskij won by resignation"]

1. d4 {[%clk 0:03:02]} 1... Nf6 {[%clk 0:02:55.1]} 2. c4 {[%clk 0:03:02.5]} 2...
e6 {[%clk 0:02:56.1]} 3. Nf3 {[%clk 0:03:03.6]} 3... b6 {[%clk 0:02:54.9]} 4. a3
{[%clk 0:03:04.7]} 4... Ba6 {[%clk 0:02:55.8]} 5. Qb3 {[%clk 0:03:00.8]} 5... c5
{[%clk 0:02:43.4]} 6. d5 {[%clk 0:02:58.5]} 6... exd5 {[%clk 0:02:43.7]} 7. cxd5
{[%clk 0:02:59.5]} 7... g6 {[%clk 0:02:44.4]} 8. Nc3 {[%clk 0:02:39.6]} 8... Bg7
{[%clk 0:02:41.7]} 9. e4 {[%clk 0:02:38.8]} 9... Bxf1 {[%clk 0:02:39.9]} 10.
Kxf1 {[%clk 0:02:39.6]} 10... O-O {[%clk 0:02:41.2]} 11. e5 {[%clk 0:02:24.2]}
11... Ng4 {[%clk 0:02:37.2]} 12. Bf4 {[%clk 0:02:25]} 12... Re8 {[%clk 0:02:28]}
13. Re1 {[%clk 0:02:24.8]} 13... Na6 {[%clk 0:01:52.2]} 14. h3 {[%clk
0:01:53.4]} 14... Nh6 {[%clk 0:01:50.8]} 15. g4 {[%clk 0:01:53.9]} 15... Qc8
{[%clk 0:01:35.3]} 16. Nb5 {[%clk 0:01:41.1]} 16... c4 {[%clk 0:01:34.2]} 17.
Qe3 {[%clk 0:01:41.5]} 1-0

[Event "*** Qualifier 1: Titled Tuesday 3|2 Blitz"]
[Site "Chess.com"]
[Date "2017.04.04"]
[Round "6"]
[White "Maung-Mg-KZH"]
[Black "yian123"]
[Result "1-0"]
[WhiteElo "2327"]
[BlackElo "2389"]
[TimeControl "180+2"]
[EndTime "14:20:58 PDT"]
[Termination "Maung-Mg-KZH won by resignation"]

1. Nf3 {[%clk 0:03:02]} 1... d5 {[%clk 0:03:00.4]} 2. d4 {[%clk 0:03:03.1]} 2...
Nf6 {[%clk 0:03:00.7]} 3. c4 {[%clk 0:03:04.1]} 3... c6 {[%clk 0:03:02.1]} 4.
Nc3 {[%clk 0:03:04]} 4... a6 {[%clk 0:03:03.4]} 5. cxd5 {[%clk 0:03:04.8]} 5...
cxd5 {[%clk 0:03:04.4]} 6. Bf4 {[%clk 0:03:04.9]} 6... Nc6 {[%clk 0:03:05.5]} 7.
e3 {[%clk 0:03:06]} 7... Bg4 {[%clk 0:03:06.6]} 8. Be2 {[%clk 0:03:04.4]} 8...
Rc8 {[%clk 0:03:07.5]} 9. O-O {[%clk 0:03:03]} 9... e6 {[%clk 0:03:07.9]} 10.
Rc1 {[%clk 0:03:01]} 10... Be7 {[%clk 0:03:06.8]} 11. h3 {[%clk 0:02:59.1]}
11... Bh5 {[%clk 0:03:06.8]} 12. Qb3 {[%clk 0:02:56.4]} 12... Na5 {[%clk
0:02:58.4]} 13. Qa4+ {[%clk 0:02:55.4]} 13... Nd7 {[%clk 0:02:57.7]} 14. Nxd5
{[%clk 0:02:33.6]} 14... exd5 {[%clk 0:02:42.8]} 15. Rxc8 {[%clk 0:02:32.5]}
15... Qxc8 {[%clk 0:02:42.5]} 16. Qxa5 {[%clk 0:02:33.6]} 16... Nf6 {[%clk
0:02:40.5]} 17. g4 {[%clk 0:02:30.4]} 17... Bg6 {[%clk 0:02:40.7]} 18. Ne5
{[%clk 0:02:29.5]} 18... O-O {[%clk 0:02:40.6]} 19. g5 {[%clk 0:02:24.9]} 19...
Ne4 {[%clk 0:02:34.9]} 20. Nxg6 {[%clk 0:02:23.2]} 20... hxg6 {[%clk 0:02:34.9]}
21. Qxd5 {[%clk 0:02:20.9]} 21... Nd6 {[%clk 0:02:20.6]} 22. Bg4 {[%clk
0:02:10.7]} 22... Qd8 {[%clk 0:02:03.5]} 23. Rc1 {[%clk 0:02:07.5]} 23... Qb6
{[%clk 0:02:03.7]} 24. Rc2 {[%clk 0:02:01.8]} 24... Rd8 {[%clk 0:01:58.3]} 25.
Qc5 {[%clk 0:01:59.5]} 25... Qxc5 {[%clk 0:01:52.9]} 26. Rxc5 {[%clk 0:01:58.5]}
26... Kf8 {[%clk 0:01:48.4]} 27. Rc7 {[%clk 0:01:56.8]} 1-0

[Event "*** Qualifier 1: Titled Tuesday 3|2 Blitz"]
[Site "Chess.com"]
[Date "2017.04.04"]
[Round "6"]
[White "saraswathii"]
[Black "FLchessplayer"]
[Result "0-1"]
[WhiteElo "2173"]
[BlackElo "2044"]
[TimeControl "180+2"]
[EndTime "14:21:23 PDT"]
[Termination "FLchessplayer won on time"]

1. e4 {[%clk 0:02:59.4]} 1... c5 {[%clk 0:02:12.5]} 2. Nf3 {[%clk 0:02:59.3]}
2... d6 {[%clk 0:02:12.9]} 3. d3 {[%clk 0:03:00.5]} 3... g6 {[%clk 0:02:13.3]}
4. g3 {[%clk 0:03:01.3]} 4... Bg7 {[%clk 0:02:14.4]} 5. Bg2 {[%clk 0:02:57.5]}
5... Nc6 {[%clk 0:02:15.3]} 6. O-O {[%clk 0:02:57.7]} 6... Qc7 {[%clk
0:02:16.4]} 7. c3 {[%clk 0:02:58.5]} 7... b5 {[%clk 0:02:15.2]} 8. Be3 {[%clk
0:02:56.7]} 8... Bb7 {[%clk 0:02:13.8]} 9. Qe2 {[%clk 0:02:50.8]} 9... a5 {[%clk
0:02:13.6]} 10. Nbd2 {[%clk 0:02:46.8]} 10... b4 {[%clk 0:02:13.9]} 11. Rfc1
{[%clk 0:02:41]} 11... Nf6 {[%clk 0:02:12.3]} 12. d4 {[%clk 0:02:37.4]} 12...
cxd4 {[%clk 0:02:02.7]} 13. cxd4 {[%clk 0:02:35.4]} 13... Qb8 {[%clk 0:02:00.6]}
0-1

[Event "*** Qualifier 1: Titled Tuesday 3|2 Blitz"]
[Site "Chess.com"]
[Date "2017.04.04"]
[Round "6"]
[White "Blitzstream"]
[Black "jcgs1030"]
[Result "0-1"]
[WhiteElo "2484"]
[BlackElo "2286"]
[TimeControl "180+2"]
[EndTime "14:22:13 PDT"]
[Termination "jcgs1030 won by resignation"]

1. d4 {[%clk 0:03:02]} 1... Nf6 {[%clk 0:02:58.9]} 2. Bg5 {[%clk 0:02:57.1]}
2... Ne4 {[%clk 0:02:58.9]} 3. Bh4 {[%clk 0:02:57.3]} 3... c5 {[%clk 0:02:59]}
4. f3 {[%clk 0:02:58]} 4... Qa5+ {[%clk 0:02:57.4]} 5. c3 {[%clk 0:02:58.7]}
5... Nd6 {[%clk 0:02:57]} 6. d5 {[%clk 0:02:53.8]} 6... g6 {[%clk 0:02:51.7]} 7.
e4 {[%clk 0:02:53.1]} 7... Bg7 {[%clk 0:02:53.1]} 8. Nd2 {[%clk 0:02:49.9]} 8...
b5 {[%clk 0:02:52.7]} 9. Qe2 {[%clk 0:02:47.1]} 9... Ba6 {[%clk 0:02:49.9]} 10.
e5 {[%clk 0:02:41.2]} 10... Nf5 {[%clk 0:02:48.8]} 11. Bf2 {[%clk 0:02:42.2]}
11... b4 {[%clk 0:02:43.5]} 12. Nc4 {[%clk 0:02:39]} 12... Bxc4 {[%clk
0:02:34.1]} 13. Qxc4 {[%clk 0:02:40.9]} 13... bxc3 {[%clk 0:02:34.6]} 14. bxc3
{[%clk 0:01:56.3]} 14... Bxe5 {[%clk 0:02:33]} 15. Ne2 {[%clk 0:01:57.3]} 15...
d6 {[%clk 0:02:25.5]} 16. g4 {[%clk 0:01:58]} 16... Nh6 {[%clk 0:02:22.4]} 17.
Be3 {[%clk 0:01:46.5]} 17... Bg7 {[%clk 0:02:14.7]} 18. h4 {[%clk 0:01:46.1]}
18... Nd7 {[%clk 0:02:10.9]} 19. Kf2 {[%clk 0:01:16.7]} 19... Ne5 {[%clk
0:02:09.7]} 20. Qb3 {[%clk 0:01:13.8]} 20... O-O {[%clk 0:02:04.3]} 21. h5
{[%clk 0:01:15.1]} 21... c4 {[%clk 0:01:43.9]} 22. Qc2 {[%clk 0:01:14.2]} 22...
Qxd5 {[%clk 0:01:41.4]} 23. Bg2 {[%clk 0:00:51.4]} 23... Nhxg4+ {[%clk
0:01:27.2]} 24. fxg4 {[%clk 0:00:52.4]} 24... Nxg4+ {[%clk 0:01:29.1]} 25. Kg3
{[%clk 0:00:41.9]} 25... Qxg2+ {[%clk 0:01:28.5]} 26. Kxg2 {[%clk 0:00:41.7]}
26... Nxe3+ {[%clk 0:01:29]} 27. Kf3 {[%clk 0:00:43.3]} 27... Nxc2 {[%clk
0:01:30.7]} 0-1

[Event "*** Qualifier 1: Titled Tuesday 3|2 Blitz"]
[Site "Chess.com"]
[Date "2017.04.04"]
[Round "6"]
[White "Aragon"]
[Black "Osensei"]
[Result "1-0"]
[WhiteElo "2013"]
[BlackElo "1128"]
[TimeControl "180+2"]
[EndTime "14:22:13 PDT"]
[Termination "Aragon won on time"]

1. e4 {[%clk 0:03:01.9]} 1... c5 {[%clk 0:03:00]} 2. Nf3 {[%clk 0:03:02.1]} 2...
d6 {[%clk 0:03:01.5]} 3. Bb5+ {[%clk 0:03:01.9]} 3... Bd7 {[%clk 0:03:01]} 4.
Bxd7+ {[%clk 0:03:02.9]} 4... Qxd7 {[%clk 0:03:02.9]} 5. c4 {[%clk 0:03:04.4]}
5... Nf6 {[%clk 0:02:59.3]} 6. Nc3 {[%clk 0:03:05.1]} 6... g6 {[%clk 0:02:55.3]}
7. d4 {[%clk 0:03:06.1]} 7... cxd4 {[%clk 0:02:54.1]} 8. Nxd4 {[%clk 0:03:08]}
8... Bg7 {[%clk 0:02:55.6]} 9. Be3 {[%clk 0:03:08.6]} 9... O-O {[%clk
0:02:56.6]} 10. f3 {[%clk 0:03:10.2]} 10... Rc8 {[%clk 0:02:54.2]} 11. b3 {[%clk
0:03:11.5]} 11... Nc6 {[%clk 0:01:48.1]} 12. O-O {[%clk 0:03:06.1]} 12... Nb4
{[%clk 0:01:16.4]} 13. Qd2 {[%clk 0:03:04.1]} 13... a5 {[%clk 0:01:15]} 14. a4
{[%clk 0:03:01.6]} 14... e6 {[%clk 0:01:10.1]} 15. Ndb5 {[%clk 0:02:57.4]} 15...
Ra6 {[%clk 0:00:47.9]} 16. Rad1 {[%clk 0:02:56.2]} 16... d5 {[%clk 0:00:44.6]}
17. Bg5 {[%clk 0:02:47.3]} 17... Qc6 {[%clk 0:00:23.2]} 18. exd5 {[%clk
0:02:41.6]} 18... exd5 {[%clk 0:00:21.4]} 19. Bxf6 {[%clk 0:02:42.1]} 19... Bxf6
{[%clk 0:00:20.8]} 20. Nxd5 {[%clk 0:02:42.3]} 20... Qc5+ {[%clk 0:00:12.4]} 21.
Kh1 {[%clk 0:02:42.6]} 21... Bg7 {[%clk 0:00:12]} 22. Rfe1 {[%clk 0:02:37.5]}
22... Re6 {[%clk 0:00:08.8]} 23. Rxe6 {[%clk 0:02:16.5]} 23... fxe6 {[%clk
0:00:10.7]} 24. Nxb4 {[%clk 0:02:17.7]} 24... axb4 {[%clk 0:00:09.5]} 25. Qd7
{[%clk 0:02:18.5]} 25... e5 {[%clk 0:00:03.4]} 26. Qe6+ {[%clk 0:02:15.1]} 26...
Kh8 {[%clk 0:00:02.2]} 27. Rd5 {[%clk 0:02:15.7]} 1-0

[Event "*** Qualifier 1: Titled Tuesday 3|2 Blitz"]
[Site "Chess.com"]
[Date "2017.04.04"]
[Round "6"]
[White "PowerThinking2650"]
[Black "Fiona"]
[Result "1-0"]
[WhiteElo "2190"]
[BlackElo "2224"]
[TimeControl "180+2"]
[EndTime "14:23:04 PDT"]
[Termination "PowerThinking2650 won by resignation"]

1. e4 {[%clk 0:03:02]} 1... e5 {[%clk 0:02:57.2]} 2. Nf3 {[%clk 0:03:02.4]} 2...
Nc6 {[%clk 0:02:57.7]} 3. Nc3 {[%clk 0:03:03.9]} 3... Nf6 {[%clk 0:02:57.9]} 4.
d4 {[%clk 0:03:05.4]} 4... exd4 {[%clk 0:02:57.9]} 5. Nxd4 {[%clk 0:03:07]} 5...
Bb4 {[%clk 0:02:57.5]} 6. Nxc6 {[%clk 0:03:08]} 6... bxc6 {[%clk 0:02:55.9]} 7.
Bd3 {[%clk 0:03:09.5]} 7... d5 {[%clk 0:02:43.3]} 8. exd5 {[%clk 0:03:10]} 8...
cxd5 {[%clk 0:02:45.2]} 9. O-O {[%clk 0:03:11.1]} 9... O-O {[%clk 0:02:45.4]}
10. Bg5 {[%clk 0:03:11.5]} 10... c6 {[%clk 0:02:45.4]} 11. Qf3 {[%clk
0:03:12.2]} 11... Bxc3 {[%clk 0:02:34.6]} 12. bxc3 {[%clk 0:03:11]} 12... h6
{[%clk 0:02:34.3]} 13. Be3 {[%clk 0:02:20.8]} 13... Bg4 {[%clk 0:02:25.4]} 14.
Qg3 {[%clk 0:02:17.8]} 14... Qd7 {[%clk 0:02:22.3]} 15. h3 {[%clk 0:02:14.5]}
15... Bf5 {[%clk 0:02:22.1]} 16. Bxh6 {[%clk 0:02:08.1]} 16... Nh5 {[%clk
0:02:12.2]} 17. Qg5 {[%clk 0:02:04.8]} 17... Bg6 {[%clk 0:01:55.8]} 18. Bxg6
{[%clk 0:01:50.4]} 18... fxg6 {[%clk 0:01:25.2]} 19. Qxg6 {[%clk 0:01:50.5]}
19... Rf6 {[%clk 0:01:16.9]} 20. Qxh5 {[%clk 0:01:48.1]} 20... Rxh6 {[%clk
0:01:17.6]} 21. Qg4 {[%clk 0:01:43.9]} 21... Qc7 {[%clk 0:01:14]} 22. Rae1
{[%clk 0:01:35.5]} 22... Rf8 {[%clk 0:01:13.5]} 23. Qg3 {[%clk 0:01:26.5]} 23...
Qd7 {[%clk 0:01:03]} 24. Re5 {[%clk 0:01:25]} 24... Rhf6 {[%clk 0:01:00.2]} 25.
f3 {[%clk 0:01:19.9]} 25... Qf7 {[%clk 0:00:52.6]} 26. Rfe1 {[%clk 0:01:17]}
26... Rg6 {[%clk 0:00:43.5]} 27. Rg5 {[%clk 0:01:17.8]} 27... Rf6 {[%clk
0:00:41]} 28. Qe5 {[%clk 0:01:11.2]} 28... Rb8 {[%clk 0:00:31.8]} 29. Qxb8+
{[%clk 0:01:02.6]} 1-0

[Event "*** Qualifier 1: Titled Tuesday 3|2 Blitz"]
[Site "Chess.com"]
[Date "2017.04.04"]
[Round "6"]
[White "Buffy7"]
[Black "biostatistician"]
[Result "1-0"]
[WhiteElo "2532"]
[BlackElo "2462"]
[TimeControl "180+2"]
[EndTime "14:23:31 PDT"]
[Termination "Buffy7 won by resignation"]

1. d4 {[%clk 0:03:02]} 1... Nf6 {[%clk 0:03:00.3]} 2. c4 {[%clk 0:03:03.3]} 2...
g6 {[%clk 0:03:01.8]} 3. Nc3 {[%clk 0:03:03.9]} 3... Bg7 {[%clk 0:03:03.7]} 4.
e4 {[%clk 0:03:05.5]} 4... d6 {[%clk 0:03:04.8]} 5. Nf3 {[%clk 0:03:06]} 5...
O-O {[%clk 0:03:06.3]} 6. Be2 {[%clk 0:03:07.5]} 6... e5 {[%clk 0:03:07.6]} 7.
d5 {[%clk 0:03:09.1]} 7... a5 {[%clk 0:03:07]} 8. Bg5 {[%clk 0:03:10.5]} 8... h6
{[%clk 0:03:06.6]} 9. Bh4 {[%clk 0:03:10]} 9... Na6 {[%clk 0:03:08]} 10. Nd2
{[%clk 0:03:07.1]} 10... Qe8 {[%clk 0:03:07.8]} 11. b3 {[%clk 0:03:05.9]} 11...
Nh7 {[%clk 0:03:04.8]} 12. Rb1 {[%clk 0:03:05.5]} 12... Bd7 {[%clk 0:02:56.7]}
13. a3 {[%clk 0:02:59.4]} 13... f5 {[%clk 0:02:56.1]} 14. f3 {[%clk 0:02:58]}
14... h5 {[%clk 0:02:52]} 15. O-O {[%clk 0:02:54.4]} 15... Bh6 {[%clk
0:02:52.3]} 16. b4 {[%clk 0:02:51.5]} 16... axb4 {[%clk 0:02:52.4]} 17. axb4
{[%clk 0:02:53.4]} 17... Be3+ {[%clk 0:02:50.4]} 18. Kh1 {[%clk 0:02:40.5]}
18... g5 {[%clk 0:02:49.8]} 19. Bf2 {[%clk 0:02:16.2]} 19... Bxf2 {[%clk
0:02:45.8]} 20. Rxf2 {[%clk 0:02:18.1]} 20... f4 {[%clk 0:02:42]} 21. Bd3 {[%clk
0:02:00.4]} 21... g4 {[%clk 0:02:37.1]} 22. Nf1 {[%clk 0:01:58.9]} 22... Qe7
{[%clk 0:02:31.5]} 23. Ra2 {[%clk 0:01:52.3]} 23... Qh4 {[%clk 0:02:09.3]} 24.
c5 {[%clk 0:01:42.2]} 24... dxc5 {[%clk 0:01:59.2]} 25. Bxa6 {[%clk 0:01:43.1]}
25... Rxa6 {[%clk 0:01:56]} 26. Rxa6 {[%clk 0:01:42.3]} 26... bxa6 {[%clk
0:01:57.9]} 27. bxc5 {[%clk 0:01:43.4]} 27... g3 {[%clk 0:01:55.5]} 28. c6
{[%clk 0:01:36.1]} 28... Bc8 {[%clk 0:01:56.2]} 29. d6 {[%clk 0:01:37.2]} 29...
cxd6 {[%clk 0:01:51.9]} 30. Qxd6 {[%clk 0:01:39.1]} 30... Qf6 {[%clk 0:01:30.6]}
31. Qxf6 {[%clk 0:01:23.3]} 31... Rxf6 {[%clk 0:01:32.5]} 32. Rb6 {[%clk
0:01:23.5]} 32... Rd6 {[%clk 0:01:06.7]} 33. Nd5 {[%clk 0:01:21.4]} 33... Kf7
{[%clk 0:01:07.4]} 34. Nd2 {[%clk 0:01:05.7]} 34... h4 {[%clk 0:01:01.4]} 35.
Nc4 {[%clk 0:01:04]} 35... Re6 {[%clk 0:01:02.4]} 36. Rb8 {[%clk 0:00:53.4]}
36... Rxc6 {[%clk 0:00:57.7]} 37. Nxe5+ {[%clk 0:00:53.6]} 37... Ke6 {[%clk
0:00:55.2]} 38. Nxc6 {[%clk 0:00:54.4]} 1-0

[Event "*** Qualifier 1: Titled Tuesday 3|2 Blitz"]
[Site "Chess.com"]
[Date "2017.04.04"]
[Round "6"]
[White "Vamostodorecto"]
[Black "macko06"]
[Result "1-0"]
[WhiteElo "2347"]
[BlackElo "2326"]
[TimeControl "180+2"]
[EndTime "14:23:37 PDT"]
[Termination "Vamostodorecto won by resignation"]

1. d4 {[%clk 0:03:02]} 1... Nf6 {[%clk 0:03:00.5]} 2. c4 {[%clk 0:03:02.9]} 2...
e6 {[%clk 0:03:01.4]} 3. Nc3 {[%clk 0:03:03.2]} 3... Bb4 {[%clk 0:03:01.9]} 4.
e3 {[%clk 0:03:02.3]} 4... O-O {[%clk 0:03:02.8]} 5. a3 {[%clk 0:03:02.2]} 5...
Bxc3+ {[%clk 0:03:00.9]} 6. bxc3 {[%clk 0:03:04.1]} 6... c5 {[%clk 0:02:56.4]}
7. Bd3 {[%clk 0:03:04.8]} 7... Nc6 {[%clk 0:02:57.3]} 8. Ne2 {[%clk 0:03:05.6]}
8... b6 {[%clk 0:02:58.1]} 9. O-O {[%clk 0:03:06.5]} 9... Ba6 {[%clk 0:02:59]}
10. e4 {[%clk 0:03:07.5]} 10... Na5 {[%clk 0:02:58.6]} 11. e5 {[%clk 0:03:01.2]}
11... Ne8 {[%clk 0:02:58.7]} 12. Qc2 {[%clk 0:03:02.8]} 12... f5 {[%clk
0:02:57.3]} 13. exf6 {[%clk 0:02:58.9]} 13... Nxf6 {[%clk 0:02:57.9]} 14. Bf4
{[%clk 0:02:29.2]} 14... Bxc4 {[%clk 0:02:52.6]} 15. Bd6 {[%clk 0:02:25.3]}
15... Bxd3 {[%clk 0:02:42.6]} 16. Qxd3 {[%clk 0:02:27.2]} 16... c4 {[%clk
0:02:41]} 17. Qc2 {[%clk 0:02:15.8]} 17... Rf7 {[%clk 0:02:38.2]} 18. Rad1
{[%clk 0:02:13.7]} 18... Nd5 {[%clk 0:02:36.1]} 19. Ng3 {[%clk 0:02:10]} 19...
Nb7 {[%clk 0:02:28.5]} 20. Ne4 {[%clk 0:02:05.4]} 20... Nxd6 {[%clk 0:02:11.9]}
21. Nxd6 {[%clk 0:02:07.3]} 21... Rf6 {[%clk 0:02:13.4]} 22. Nxc4 {[%clk
0:02:05.9]} 22... Rc8 {[%clk 0:02:11.9]} 23. Qb3 {[%clk 0:02:04.2]} 23... b5
{[%clk 0:02:09.7]} 24. Nd6 {[%clk 0:01:59.9]} 24... Rxc3 {[%clk 0:02:05.9]} 25.
Qxb5 {[%clk 0:01:57.4]} 25... Rg6 {[%clk 0:02:06.4]} 26. Qa6 {[%clk 0:01:31.5]}
26... h5 {[%clk 0:01:57]} 27. Kh1 {[%clk 0:01:25]} 27... Qg5 {[%clk 0:01:56.2]}
28. Rg1 {[%clk 0:01:17.1]} 28... h4 {[%clk 0:01:42.5]} 29. Ne4 {[%clk
0:01:14.2]} 29... Qd8 {[%clk 0:01:10.7]} 30. Nxc3 {[%clk 0:01:12.1]} 30... Nxc3
{[%clk 0:01:12.6]} 31. Rc1 {[%clk 0:01:11]} 31... Qc7 {[%clk 0:00:58.7]} 32. Qd3
{[%clk 0:01:08.9]} 32... h3 {[%clk 0:00:39.2]} 33. Qxg6 {[%clk 0:01:04.9]} 33...
hxg2+ {[%clk 0:00:40.1]} 34. Qxg2 {[%clk 0:01:04.8]} 34... d5 {[%clk 0:00:35.8]}
35. Rxc3 {[%clk 0:00:58.9]} 1-0

[Event "*** Qualifier 1: Titled Tuesday 3|2 Blitz"]
[Site "Chess.com"]
[Date "2017.04.04"]
[Round "6"]
[White "Alexander_Moskalenko"]
[Black "Robin-Side"]
[Result "0-1"]
[WhiteElo "2609"]
[BlackElo "2413"]
[TimeControl "180+2"]
[EndTime "14:23:39 PDT"]
[Termination "Robin-Side won on time"]

1. c4 {[%clk 0:03:02]} 1... c5 {[%clk 0:00:16]} 2. Nc3 {[%clk 0:03:03.9]} 2...
g6 {[%clk 0:00:16.9]} 3. Nf3 {[%clk 0:03:04.6]} 3... Bg7 {[%clk 0:00:18.1]} 4.
g3 {[%clk 0:02:58.1]} 4... Nc6 {[%clk 0:00:18.5]} 5. Bg2 {[%clk 0:02:55.8]} 5...
e5 {[%clk 0:00:18]} 6. O-O {[%clk 0:02:56.4]} 6... Nge7 {[%clk 0:00:19.6]} 7. d3
{[%clk 0:02:55.1]} 7... O-O {[%clk 0:00:21.2]} 8. Ne1 {[%clk 0:02:48.9]} 8... d6
{[%clk 0:00:22.2]} 9. Nc2 {[%clk 0:02:46.9]} 9... a6 {[%clk 0:00:23.8]} 10. Ne3
{[%clk 0:02:48.8]} 10... Rb8 {[%clk 0:00:25.4]} 11. a4 {[%clk 0:02:31.8]} 11...
Be6 {[%clk 0:00:19.8]} 12. Ned5 {[%clk 0:02:33.3]} 12... h6 {[%clk 0:00:19.6]}
13. a5 {[%clk 0:02:31.2]} 13... f5 {[%clk 0:00:20.7]} 14. Bd2 {[%clk 0:02:24.9]}
14... Bf7 {[%clk 0:00:22.1]} 15. Nxe7+ {[%clk 0:02:05.4]} 15... Nxe7 {[%clk
0:00:24]} 16. b4 {[%clk 0:02:06.8]} 16... cxb4 {[%clk 0:00:24.2]} 17. Na4 {[%clk
0:02:08.5]} 17... d5 {[%clk 0:00:24.4]} 18. Bxb4 {[%clk 0:02:04.3]} 18... dxc4
{[%clk 0:00:25.2]} 19. dxc4 {[%clk 0:02:03.8]} 19... Re8 {[%clk 0:00:19.3]} 0-1

[Event "*** Qualifier 1: Titled Tuesday 3|2 Blitz"]
[Site "Chess.com"]
[Date "2017.04.04"]
[Round "6"]
[White "Sethu0025"]
[Black "MagnusSeinFanboy"]
[Result "1-0"]
[WhiteElo "2584"]
[BlackElo "2226"]
[TimeControl "180+2"]
[EndTime "14:23:48 PDT"]
[Termination "Sethu0025 won by resignation"]

1. e4 {[%clk 0:03:02]} 1... e5 {[%clk 0:02:59.8]} 2. Nf3 {[%clk 0:03:02.8]} 2...
Nc6 {[%clk 0:03:00.9]} 3. Nc3 {[%clk 0:03:04.7]} 3... Nf6 {[%clk 0:03:00]} 4.
Be2 {[%clk 0:03:06.6]} 4... d5 {[%clk 0:02:52.3]} 5. exd5 {[%clk 0:03:07.4]}
5... Nxd5 {[%clk 0:02:53.6]} 6. O-O {[%clk 0:03:08.2]} 6... Bc5 {[%clk
0:02:50.5]} 7. Bb5 {[%clk 0:03:08.3]} 7... f6 {[%clk 0:02:05.2]} 8. d4 {[%clk
0:03:06.7]} 8... exd4 {[%clk 0:01:57.5]} 9. Re1+ {[%clk 0:03:06.8]} 9... Ne7
{[%clk 0:01:47.5]} 10. Ne4 {[%clk 0:02:44.3]} 10... Bb4 {[%clk 0:01:36.2]} 11.
Bxc6+ {[%clk 0:02:44.9]} 11... bxc6 {[%clk 0:01:36.2]} 12. Bd2 {[%clk
0:02:45.6]} 12... Rb8 {[%clk 0:01:11.4]} 13. Bxb4 {[%clk 0:02:37.4]} 13... Rxb4
{[%clk 0:01:10.9]} 14. b3 {[%clk 0:02:37.8]} 14... Bg4 {[%clk 0:01:07.9]} 15. a3
{[%clk 0:02:35.7]} 15... Rb5 {[%clk 0:01:01.8]} 16. h3 {[%clk 0:02:31.4]} 16...
Bxf3 {[%clk 0:00:59.7]} 17. Qxf3 {[%clk 0:02:33.3]} 17... O-O {[%clk 0:00:58]}
18. a4 {[%clk 0:02:33.8]} 18... Rd5 {[%clk 0:00:42.7]} 19. Rad1 {[%clk
0:02:33.9]} 19... c5 {[%clk 0:00:41.3]} 20. Ng3 {[%clk 0:02:30.4]} 20... Ng6
{[%clk 0:00:30.3]} 21. Nf5 {[%clk 0:02:27.7]} 21... c6 {[%clk 0:00:20.6]} 22. g4
{[%clk 0:02:18.4]} 22... Ne5 {[%clk 0:00:19.9]} 23. Qe4 {[%clk 0:02:17.4]} 23...
g6 {[%clk 0:00:20.4]} 24. Ng3 {[%clk 0:02:14.8]} 24... Qd7 {[%clk 0:00:20.2]}
25. f4 {[%clk 0:02:15.1]} 25... Nf7 {[%clk 0:00:20]} 26. Qf3 {[%clk 0:02:06.4]}
26... Re8 {[%clk 0:00:17.4]} 27. Ne4 {[%clk 0:02:05.7]} 27... Kg7 {[%clk
0:00:17.8]} 28. Re2 {[%clk 0:01:56.6]} 28... f5 {[%clk 0:00:13]} 29. gxf5 {[%clk
0:01:56.6]} 29... Rxf5 {[%clk 0:00:13.3]} 30. Rde1 {[%clk 0:01:54.7]} 30... Rf8
{[%clk 0:00:12]} 31. Ng3 {[%clk 0:01:52.4]} 31... Rf6 {[%clk 0:00:08.5]} 32. f5
{[%clk 0:01:48.2]} 32... Nh6 {[%clk 0:00:08.7]} 33. Re7+ {[%clk 0:01:48.1]}
33... R8f7 {[%clk 0:00:05.9]} 34. Rxd7 {[%clk 0:01:49]} 34... Rxd7 {[%clk
0:00:07.8]} 35. Re6 {[%clk 0:01:48.3]} 35... Nxf5 {[%clk 0:00:04.8]} 36. Rxf6
{[%clk 0:01:47.3]} 36... Kxf6 {[%clk 0:00:06.5]} 37. Nxf5 {[%clk 0:01:47.2]}
37... gxf5 {[%clk 0:00:07.3]} 38. Qxc6+ {[%clk 0:01:48.2]} 38... Ke7 {[%clk
0:00:09]} 39. Qxc5+ {[%clk 0:01:49.4]} 39... Ke6 {[%clk 0:00:10.7]} 40. a5
{[%clk 0:01:48.5]} 40... h5 {[%clk 0:00:11]} 41. b4 {[%clk 0:01:48.5]} 41... d3
{[%clk 0:00:11.5]} 42. Qc4+ {[%clk 0:01:48.6]} 42... Ke5 {[%clk 0:00:12]} 43.
cxd3 {[%clk 0:01:49.7]} 43... Rg7+ {[%clk 0:00:12.2]} 44. Kf2 {[%clk 0:01:49.8]}
44... h4 {[%clk 0:00:12.4]} 45. Qc3+ {[%clk 0:01:49.8]} 1-0